bitfinex/quotes_SOLUSD_20240909
["timestamp","ask_amount","ask_price","bid_price","bid_amount"]
[1725902986268,15.2541,133.92,133.85,50.0]
[1725902987065,1.86719406,133.91,133.85,50.0]
[1725902987766,15.2541,133.92,133.85,50.0]
[1725902989182,1.86727,133.91,133.82,56.5668]
[1725902989399,0.12549,133.9,133.82,56.5668]
[1725902989884,0.12549,133.91,133.82,56.5668]
[1725902990088,20.12549,133.91,133.82,50.0]
[1725902990462,1.86760113,133.9,133.82,50.0]
[1725902990678,1.8676035,133.89,133.82,50.0]
[1725902991273,20.12549,133.91,133.82,50.0]
[1725902999791,20.12549,133.91,133.84,50.0]
[1725902999970,15.2541,133.92,133.84,50.0]
[1725902999971,15.2541,133.92,133.85,1.49381091]
[1725903000168,15.2541,133.92,133.84,50.0]
[1725903000577,20.0,133.91,133.84,50.0]
[1725903002080,20.0,133.91,133.85,1.49399709]
[1725903002277,20.0,133.91,133.86,1.49380505]
[1725903002501,15.2541,133.92,133.86,50.0]
[1725903002797,6.2676,133.95,133.87,1.49376166]
[1725903003366,6.2676,133.95,133.88,50.0]
[1725903003571,6.5271,133.99,133.9,50.0]
[1725903003782,6.5271,133.99,133.91,1.49319158]
[1725903003992,6.5271,133.99,133.88,56.5689]
[1725903004682,6.5271,133.99,133.9,50.0]
[1725903005289,6.5271,133.99,133.88,56.5689]
[1725903005528,6.5271,133.99,133.86,50.0]
[1725903006100,6.5271,133.99,133.85,21.9169]
[1725903006101,20.0,133.98,133.88,50.0]
[1725903007701,0.12549,133.96,133.86,50.0]
[1725903007906,1.99230801,133.96,133.86,50.0]
[1725903008089,21.99230801,133.96,133.86,50.0]
[1725903008292,23.21509,133.94,133.83,50.0]
[1725903008508,0.12549,133.92,133.83,50.0]
[1725903008707,46.99303524,133.92,133.83,50.0]
[1725903008906,0.12549,133.9,133.83,50.0]
[1725903009117,1.99303438,133.9,133.83,50.0]
[1725903009311,1.99303438,133.9,133.81,6.6659]
[1725903009312,23.0896,133.94,133.85,50.0]
[1725903009516,23.0896,133.94,133.88,50.0]
[1725903009714,6.5812,133.94,133.88,50.0]
[1725903010929,6.5812,133.94,133.86,50.0]
[1725903011219,6.5812,133.94,133.88,50.0]
[1725903011403,6.5812,133.94,133.86,50.0]
[1725903011923,1.86692922,133.93,133.84,50.0]
[1725903012128,1.867178,133.92,133.84,50.0]
[1725903012421,20.0,133.93,133.86,50.0]
[1725903015002,20.0,133.93,133.84,50.0]
[1725903015635,0.12549,133.92,133.84,50.0]
[1725903016121,1.99293094,133.92,133.84,50.0]
[1725903016507,46.99293094,133.92,133.84,50.0]
[1725903016724,0.12549,133.9,133.84,50.0]
[1725903016928,20.0,133.91,133.84,50.0]
[1725903017226,0.12549,133.9,133.84,50.0]
[1725903018327,20.0,133.91,133.84,50.0]
[1725903018522,1.86747867,133.9,133.84,50.0]
[1725903019100,0.12549,133.92,133.84,50.0]
[1725903019428,45.12549,133.92,133.84,50.0]
[1725903019628,20.0,133.91,133.84,50.0]
[1725903020112,20.0,133.93,133.86,50.0]
[1725903020897,20.0,133.93,133.84,50.0]
[1725903021926,0.12549,133.92,133.84,50.0]
[1725903022833,0.12549,133.92,133.83,50.0]
[1725903022834,16.07,133.91,133.83,50.0]
[1725903023032,20.0,133.9,133.83,50.0]
[1725903023504,0.12549,133.89,133.81,50.0]
[1725903023701,1.99316531,133.89,133.81,50.0]
[1725903024335,0.12549,133.89,133.81,50.0]
[1725903024509,20.0,133.9,133.81,50.0]
[1725903024712,0.12549,133.89,133.79,50.0]
[1725903024906,1.9932733,133.89,133.81,50.0]
[1725903025227,0.12549,133.89,133.81,50.0]
[1725903026204,0.12549,133.89,133.79,50.0]
[1725903026403,0.12549,133.89,133.8,5.57759651]
[1725903026632,46.99342316,133.89,133.8,5.57759651]
[1725903026804,0.12549,133.87,133.8,5.57759651]
[1725903027003,66.99385212,133.87,133.77,50.0]
[1725903027525,66.99385212,133.87,133.78,7.07478005]
[1725903027526,0.12549,133.86,133.78,7.07478005]
[1725903027829,0.12549,133.86,133.78,1.49469656]
[1725903028131,0.12549,133.86,133.78,7.07474109]
[1725903028838,0.12549,133.86,133.79,1.49450151]
[1725903029220,0.12549,133.86,133.8,1.49452982]
[1725903030130,0.12549,133.86,133.78,5.58004453]
[1725903030329,1.99380176,133.86,133.78,5.58004453]
[1725903030514,1.99380176,133.86,133.77,50.0]
[1725903030713,0.12549,133.84,133.74,56.0449]
[1725903030919,0.12549,133.84,133.75,5.58554945]
[1725903030920,0.12549,133.82,133.75,5.58554945]
[1725903031137,0.12549,133.82,133.73,5.58772031]
[1725903031138,0.12549,133.8,133.73,5.58772031]
[1725903031337,0.12549,133.78,133.7,5.59144643]
[1725903031549,0.12549,133.76,133.66,5.5927386]
[1725903031714,6.4716,133.75,133.66,5.5927386]
[1725903031909,45.12549,133.74,133.64,5.60047617]
[1725903032209,20.0,133.73,133.66,50.0]
[1725903032516,0.12549,133.72,133.64,50.0]
[1725903033136,20.0,133.72,133.64,50.0]
[1725903033644,20.12549,133.74,133.64,50.0]
[1725903035821,20.12549,133.74,133.65,1.49558371]
[1725903036026,20.12549,133.74,133.64,50.0]
[1725903037132,0.12549,133.72,133.64,50.0]
[1725903037336,20.12549,133.72,133.64,50.0]
[1725903037829,20.12549,133.72,133.63,1.4955782]
[1725903038044,1.8703105,133.71,133.61,6.5505]
[1725903038348,6.4455,133.68,133.6,50.0]
[1725903039353,6.4455,133.68,133.62,50.0]
[1725903040146,6.4455,133.68,133.6,50.0]
[1725903040444,6.4455,133.68,133.62,50.0]
[1725903040649,6.4455,133.68,133.63,1.49640559]
[1725903041328,6.4455,133.68,133.62,50.0]
[1725903041524,6.4455,133.68,133.63,1.49639478]
[1725903042049,0.12549,133.67,133.58,50.8542609]
[1725903042340,66.99589526,133.67,133.58,0.8542609]
[1725903044033,65.12549,133.67,133.58,50.8542609]
[1725903044241,20.0,133.67,133.6,50.0]
[1725903044436,20.0,133.67,133.58,50.8542609]
[1725903045438,20.0,133.67,133.6,50.0]
[1725903045846,6.4455,133.68,133.62,50.0]
[1725903046223,6.4455,133.68,133.64,50.0]
[1725903047127,6.5548,133.72,133.64,50.0]
[1725903048329,6.5548,133.72,133.65,1.49342701]
[1725903049031,6.5548,133.72,133.62,50.0]
[1725903049236,66.87047344,133.71,133.62,50.0]
[1725903049550,65.0,133.71,133.62,50.0]
[1725903049930,0.12549,133.7,133.62,50.0]
[1725903050655,0.12549,133.7,133.63,1.49407163]
[1725903050958,0.12549,133.7,133.62,50.0]
[1725903051330,0.12549,133.7,133.63,1.49639151]
[1725903051527,20.0,133.71,133.63,1.49639151]
[1725903051731,20.0,133.71,133.64,50.0]
[1725903051948,20.0,133.71,133.65,1.49469222]
[1725903052252,6.5548,133.72,133.65,1.49469222]
[1725903052447,6.5548,133.72,133.66,50.0]
[1725903052636,6.5548,133.72,133.67,1.4951887]
[1725903052820,6.5548,133.72,133.66,50.0]
[1725903053259,6.5548,133.72,133.64,50.0]
[1725903054149,0.12549,133.71,133.64,50.0]
[1725903054450,6.5548,133.72,133.64,50.0]
[1725903055346,0.12549,133.71,133.62,50.0]
[1725903055584,6.5548,133.72,133.64,50.0]
[1725903057353,1.87000065,133.71,133.64,50.0]
[1725903057532,0.12549,133.69,133.62,50.0]
[1725903057739,1.99598769,133.69,133.62,50.0]
[1725903057951,20.0,133.71,133.62,50.0]
[1725903058349,20.0,133.71,133.64,50.0]
[1725903059530,20.0,133.71,133.62,50.0]
[1725903059730,1.99576779,133.7,133.6,50.0]
[1725903059938,1.99576779,133.7,133.62,50.0]
[1725903060151,0.12549,133.7,133.62,50.0]
[1725903060349,20.0,133.71,133.62,50.0]
[1725903060847,1.995816,133.7,133.62,50.0]
[1725903061045,0.12549,133.7,133.62,50.0]
[1725903061359,20.0,133.71,133.62,50.0]
[1725903061562,1.87023713,133.7,133.62,50.0]
[1725903061846,20.0,133.71,133.62,50.0]
[1725903062048,20.0,133.71,133.64,50.0]
[1725903062255,20.0,133.71,133.65,50.0]
[1725903062562,20.0,133.71,133.63,50.0]
[1725903062732,1.87012918,133.7,133.61,50.0]
[1725903063433,6.2125,133.68,133.58,0.8542609]
[1725903063636,0.12549,133.66,133.58,0.8542609]
[1725903063955,1.99652556,133.66,133.58,0.8542609]
[1725903065137,6.2125,133.68,133.61,50.0]
[1725903065342,16.5251,133.69,133.63,50.0]
[1725903065538,16.5251,133.69,133.61,50.0]
[1725903065738,16.5251,133.69,133.59,15.4741]
[1725903065739,1.87060251,133.68,133.59,50.0]
[1725903065942,16.5251,133.69,133.59,50.0]
[1725903065943,1.8705872,133.67,133.59,50.0]
[1725903066147,16.5251,133.69,133.59,50.0]
[1725903066654,6.156,133.67,133.58,0.8542609]
[1725903066857,65.0,133.66,133.58,0.8542609]
[1725903067057,1.87118658,133.65,133.58,0.8542609]
[1725903067291,1.87128785,133.64,133.58,0.8542609]
[1725903067559,0.12549,133.63,133.58,0.8542609]
[1725903067871,1.99695962,133.63,133.58,0.8542609]
[1725903068237,0.12549,133.63,133.58,0.8542609]
[1725903068435,0.12549,133.64,133.58,0.8542609]
[1725903068949,0.12549,133.65,133.58,0.8542609]
[1725903069836,1.99671589,133.65,133.58,0.8542609]
[1725903070037,6.45979,133.63,133.58,0.8542609]
[1725903070256,0.12549,133.61,133.58,0.8542609]
[1725903070436,0.12549,133.59,133.58,0.8542609]
[1725903070642,1.99755817,133.59,133.58,0.8542609]
[1725903071536,0.12549,133.59,133.58,0.8542609]
[1725903072258,0.12549,133.57,133.47,50.0]
[1725903072558,0.12549,133.55,133.47,50.0]
[1725903072761,6.3343,133.56,133.51,50.0]
[1725903072937,20.0,133.57,133.51,50.0]
[1725903073135,20.0,133.57,133.52,1.49127965]
[1725903073345,20.0,133.57,133.51,50.0]
[1725903073863,21.6287,133.62,133.55,50.0]
[1725903074032,21.6287,133.62,133.56,1.49590778]
[1725903074831,21.6287,133.62,133.53,50.0]
[1725903075036,1.87143256,133.61,133.49,56.4544]
[1725903075238,21.6287,133.62,133.39,10.0]
[1725903075239,1.87229392,133.6,133.47,50.0]
[1725903075437,1.87229392,133.6,133.45,50.8542609]
[1725903075438,0.12549,133.58,133.45,50.8542609]
[1725903075637,0.12549,133.56,133.45,0.8542609]
[1725903075863,1.99837073,133.56,133.45,0.8542609]
[1725903076068,0.12549,133.54,133.45,0.8542609]
[1725903076237,45.12549,133.54,133.45,50.8542609]
[1725903076442,20.0,133.53,133.46,0.98027144]
[1725903076637,20.0,133.53,133.47,50.0]
[1725903077165,20.12549,133.54,133.47,50.0]
[1725903077551,20.12549,133.54,133.45,50.8542609]
[1725903077758,0.12549,133.52,133.45,50.8542609]
[1725903077963,1.99840868,133.52,133.45,50.8542609]
[1725903078259,21.99840868,133.52,133.45,50.8542609]
[1725903078443,20.12549,133.52,133.45,50.8542609]
[1725903079762,20.0,133.51,133.45,50.8542609]
[1725903080165,0.12549,133.53,133.45,50.8542609]
[1725903080349,45.12549,133.53,133.45,50.8542609]
[1725903080544,20.0,133.52,133.45,50.8542609]
[1725903080751,0.12549,133.51,133.45,50.8542609]
[1725903082878,20.0,133.52,133.45,50.8542609]
[1725903083056,20.12549,133.54,133.46,1.49833117]
[1725903083254,20.12549,133.54,133.47,51.49810442]
[1725903083448,20.12549,133.54,133.48,1.49805539]
[1725903083654,0.12549,133.52,133.45,50.8542609]
[1725903083863,20.12549,133.52,133.45,50.3542609]
[1725903084659,20.12549,133.52,133.45,0.3542609]
[1725903084868,1.87292052,133.51,133.45,0.3542609]
[1725903085600,0.12549,133.5,133.45,0.3542609]
[1725903085888,6.0293,133.47,133.45,0.3542609]
[1725903086057,1.87352056,133.46,133.45,0.3542609]
[1725903086876,0.12549,133.45,133.37,50.0]
[1725903087078,21.9994937,133.45,133.32,50.8542609]
[1725903087356,0.12549,133.43,133.32,0.8542609]
[1725903087657,0.12549,133.41,133.32,0.8542609]
[1725903087858,65.12549,133.41,133.32,50.8542609]
[1725903088271,65.12549,133.41,133.32,50.3542609]
[1725903089383,65.12549,133.41,133.32,0.3542609]
[1725903090268,65.12549,133.41,133.32,1.85402096]
[1725903090472,65.12549,133.41,133.32,0.3542609]
[1725903091880,67.00042878,133.41,133.28,6.3014]
[1725903092376,65.12549,133.41,133.3,50.0]
[1725903092590,65.12549,133.41,133.31,1.49992734]
[1725903092769,65.12549,133.41,133.3,50.0]
[1725903092969,0.12549,133.41,133.32,50.0]
[1725903093174,0.12549,133.41,133.33,1.49970479]
[1725903093580,6.0356,133.42,133.33,1.49970479]
[1725903094454,1.87444283,133.41,133.32,50.0]
[1725903094867,0.12549,133.4,133.32,50.0]
[1725903095192,1.874488,133.39,133.3,50.0]
[1725903095478,0.12549,133.38,133.27,50.0]
[1725903095687,65.12549,133.38,133.27,50.0]
[1725903095997,65.12549,133.38,133.29,50.0]
[1725903096283,20.0,133.38,133.32,50.0]
[1725903096460,20.0,133.38,133.25,1.49983768]
[1725903096662,0.12549,133.4,133.32,50.0]
[1725903096979,6.0356,133.42,133.34,50.0]
[1725903097171,1.87432855,133.41,133.32,50.0]
[1725903097374,6.0356,133.42,133.35,50.0]
[1725903097675,11.6962,133.44,133.35,50.0]
[1725903097856,11.6962,133.44,133.33,51.5552]
[1725903097857,11.6962,133.44,133.37,50.0]
[1725903098169,19.86015642,133.46,133.37,50.0]
[1725903098560,13.49775642,133.46,133.39,50.0]
[1725903098758,22.29,133.48,133.41,50.0]
[1725903098966,22.29,133.48,133.37,50.0]
[1725903099165,1.87382502,133.47,133.37,50.0]
[1725903099480,22.29,133.48,133.37,50.0]
[1725903099788,24.1638215,133.48,133.37,50.0]
[1725903099967,0.12549,133.47,133.37,50.0]
[1725903100277,20.12549,133.47,133.37,50.0]
[1725903100683,0.12549,133.45,133.37,50.0]
[1725903100890,0.12549,133.45,133.33,51.5552]
[1725903100891,22.29,133.48,133.4,50.0]
[1725903101359,22.29,133.48,133.42,50.0]
[1725903101764,6.6137,133.48,133.42,50.0]
[1725903101965,22.4204,133.52,133.42,50.0]
[1725903103289,20.0,133.51,133.42,50.0]
[1725903104176,20.0,133.51,133.44,50.0]
[1725903104684,22.4204,133.52,133.44,50.0]
[1725903104988,6.6126,133.55,133.46,50.0]
[1725903105483,6.6126,133.55,133.46,97.19653964]
[1725903105988,1.87245641,133.54,133.44,50.0]
[1725903106190,4.15972528,133.53,133.41,56.1965]
[1725903106380,1.87307273,133.52,133.41,56.1965]
[1725903106578,1.87324754,133.51,133.41,56.1965]
[1725903107179,0.12549,133.5,133.41,56.1965]
[1725903107382,20.12549,133.5,133.41,56.1965]
[1725903108101,20.12549,133.5,133.43,50.0]
[1725903108672,20.0,133.49,133.43,50.0]
[1725903108988,0.12549,133.5,133.43,50.0]
[1725903112208,0.12549,133.5,133.41,50.0]
[1725903112378,0.12549,133.5,133.43,50.0]
[1725903112581,20.0,133.54,133.44,1.49834605]
[1725903112769,0.12549,133.52,133.45,50.0]
[1725903112970,0.12549,133.52,133.46,1.49814569]
[1725903113213,0.12549,133.52,133.45,50.0]
[1725903113494,0.12549,133.52,133.47,1.49814966]
[1725903113794,0.12549,133.52,133.45,50.0]
[1725903113973,0.12549,133.52,133.46,1.49817519]
[1725903114174,0.12549,133.52,133.46,1.49817238]
[1725903114375,0.12549,133.53,133.41,50.0]
[1725903114588,46.99851772,133.53,133.42,20.0]
[1725903114895,0.12549,133.51,133.41,50.0]
[1725903115191,45.12549,133.51,133.43,50.0]
[1725903115392,20.0,133.5,133.44,0.56624114]
[1725903116492,20.0,133.5,133.45,50.0]
[1725903116802,0.12549,133.51,133.46,0.56615628]
[1725903116972,0.12549,133.51,133.45,50.0]
[1725903117169,0.12549,133.52,133.41,50.0]
[1725903117576,20.12549,133.52,133.41,50.0]
[1725903117778,0.12549,133.5,133.41,50.0]
[1725903117975,20.12549,133.5,133.41,50.0]
[1725903118881,20.12549,133.5,133.43,50.0]
[1725903119269,21.99852665,133.5,133.43,50.0]
[1725903119480,20.12549,133.5,133.43,50.0]
[1725903119679,21.99852718,133.5,133.43,50.0]
[1725903119902,20.12549,133.5,133.43,50.0]
[1725903120801,20.0,133.5,133.45,50.0]
[1725903121000,20.0,133.53,133.45,50.0]
[1725903121778,1.87284351,133.53,133.43,50.0]
[1725903122085,0.12549,133.53,133.43,50.0]
[1725903122284,46.99839114,133.53,133.43,50.0]
[1725903122899,7.79412487,133.54,133.45,50.0]
[1725903123208,7.79412487,133.54,133.44,45.0]
[1725903123209,6.6126,133.55,133.49,50.0]
[1725903125087,0.12549,133.54,133.47,50.0]
[1725903125287,1.99796039,133.54,133.45,50.0]
[1725903125498,20.12549,133.54,133.46,20.0]
[1725903126209,20.12549,133.54,133.45,50.0]
[1725903126513,0.12549,133.52,133.42,56.1763]
[1725903126699,21.99840414,133.52,133.44,50.0]
[1725903126905,20.12549,133.52,133.44,50.0]
[1725903127413,6.6126,133.55,133.48,50.0]
[1725903127590,20.0,133.54,133.46,50.0]
[1725903128112,20.0,133.54,133.43,50.0]
[1725903128414,21.87289227,133.54,133.43,50.0]
[1725903128795,45.0,133.53,133.43,50.0]
[1725903128998,0.12549,133.51,133.43,50.0]
[1725903129810,20.0,133.52,133.47,50.0]
[1725903129989,0.12549,133.54,133.48,1.49796372]
[1725903130190,6.6126,133.55,133.49,1.49796363]
[1725903130498,6.6126,133.55,133.49,50.0]
[1725903131086,1.87206184,133.54,133.47,50.0]
[1725903131290,6.6126,133.55,133.47,50.0]
[1725903131718,20.0,133.54,133.45,50.0]
[1725903131908,20.0,133.54,133.47,50.0]
[1725903132210,6.6126,133.55,133.49,50.0]
[1725903132419,6.6126,133.55,133.47,50.0]
[1725903132600,6.6126,133.55,133.45,50.0]
[1725903132601,20.12549,133.54,133.45,50.0]
[1725903132798,20.12549,133.54,133.43,50.0]
[1725903133006,21.99827427,133.54,133.46,50.0]
[1725903133615,21.99827427,133.54,133.43,50.0]
[1725903133814,0.12549,133.52,133.43,50.0]
[1725903133994,21.99860142,133.52,133.41,50.0]
[1725903134193,45.0,133.51,133.4,16.3983]
[1725903134400,0.12549,133.48,133.39,50.0]
[1725903134599,21.9990147,133.48,133.39,50.0]
[1725903134804,20.12549,133.48,133.41,50.0]
[1725903135306,21.99884347,133.48,133.39,50.0]
[1725903135696,21.99901189,133.48,133.39,50.0]
[1725903135894,20.12549,133.48,133.39,50.0]
[1725903136829,20.12549,133.48,133.41,50.0]
[1725903137119,1.87351878,133.47,133.38,50.0]
[1725903137299,0.12549,133.46,133.38,50.0]
[1725903137620,21.99915348,133.46,133.38,50.0]
[1725903138305,21.99915348,133.46,133.36,50.0]
[1725903138507,21.71269,133.44,133.36,50.0]
[1725903138708,20.0,133.43,133.36,50.0]
[1725903139017,20.0,133.43,133.35,50.0]
[1725903139319,1.87410274,133.42,133.35,50.0]
[1725903139523,1.99975458,133.41,133.31,50.0]
[1725903139827,21.99975458,133.41,133.31,50.0]
[1725903139995,0.12549,133.39,133.27,50.0]
[1725903140195,2.00054074,133.39,133.27,50.0]
[1725903140417,65.12549,133.39,133.27,50.0]
[1725903140823,65.12549,133.39,133.29,50.0]
[1725903141116,65.12549,133.39,133.27,50.0]
[1725903141306,65.12549,133.39,133.29,50.0]
[1725903141818,65.12549,133.39,133.3,1.36514624]
[1725903142125,65.12549,133.39,133.29,50.0]
[1725903143022,65.12549,133.39,133.31,50.0]
[1725903143316,36.10877929,133.4,133.33,50.0]
[1725903143528,36.10877929,133.4,133.35,50.0]
[1725903143717,22.4825,133.4,133.36,1.36365924]
[1725903143901,22.4825,133.4,133.35,50.0]
[1725903144302,22.0257,133.44,133.35,50.0]
[1725903144818,22.0257,133.44,133.37,50.0]
[1725903145313,22.0257,133.44,133.39,50.0]
[1725903145516,23.89937204,133.44,133.36,50.0]
[1725903145719,23.89937204,133.44,133.37,20.0]
[1725903145900,22.0257,133.44,133.36,50.0]
[1725903146107,22.0257,133.44,133.37,20.0]
[1725903146430,23.89952554,133.44,133.36,50.0]
[1725903146615,20.0,133.43,133.36,50.0]
[1725903147104,22.0257,133.44,133.39,50.0]
[1725903147301,22.0257,133.44,133.37,50.0]
[1725903147730,20.0,133.43,133.37,50.0]
[1725903148928,20.0,133.43,133.39,50.0]
[1725903149115,22.0257,133.44,133.4,1.49892067]
[1725903149323,6.6054,133.44,133.4,1.49892067]
[1725903149507,6.6054,133.44,133.39,50.0]
[1725903149713,6.6054,133.44,133.37,50.0]
[1725903150217,6.6054,133.44,133.39,50.0]
[1725903150602,6.6054,133.44,133.36,47.26239316]
[1725903150603,6.1455,133.47,133.41,50.0]
[1725903151221,16.1079,133.48,133.42,1.49647751]
[1725903151419,16.1079,133.48,133.43,51.49636535]
[1725903151628,6.1455,133.5,133.43,51.49636535]
[1725903152131,6.1455,133.5,133.43,50.0]
[1725903152824,6.1455,133.5,133.44,1.49598404]
[1725903153004,6.1455,133.5,133.45,50.0]
[1725903154029,16.3883,133.51,133.45,50.0]
[1725903154408,16.3883,133.51,133.46,1.49808754]
[1725903154711,16.3883,133.51,133.45,50.0]
[1725903156622,16.3883,133.51,133.39,6.5701]
[1725903156623,6.2226,133.54,133.47,50.0]
[1725903156935,20.0,133.53,133.47,50.0]
[1725903157532,14.01545313,133.54,133.47,50.0]
[1725903157729,20.0,133.53,133.47,50.0]
[1725903158321,20.0,133.53,133.49,50.0]
[1725903159210,20.0,133.53,133.47,50.0]
[1725903159409,20.0,133.53,133.49,50.0]
[1725903159608,7.79285313,133.54,133.49,50.0]
[1725903159814,17.10906082,133.57,133.51,50.0]
[1725903159815,6.6131,133.57,133.51,50.0]
[1725903160239,15.2836,133.59,133.53,50.0]
[1725903160533,0.8542609,133.65,133.51,47.26239316]
[1725903160534,21.4103,133.63,133.55,50.0]
[1725903160738,21.4103,133.63,133.56,1.49496106]
[1725903161737,20.0,133.62,133.56,1.49496106]
[1725903162429,21.4103,133.63,133.53,50.0]
[1725903162615,21.4103,133.63,133.55,50.0]
[1725903163539,21.4103,133.63,133.57,50.0]
[1725903163847,21.4103,133.63,133.58,1.49348158]
[1725903164212,21.4103,133.63,133.57,50.0]
[1725903165824,21.4103,133.63,133.55,50.0]
[1725903166026,0.12549,133.62,133.55,50.0]
[1725903167440,45.12549,133.62,133.55,50.0]
[1725903167743,0.12549,133.62,133.55,50.0]
[1725903167943,1.99681981,133.62,133.55,50.0]
[1725903168122,46.99681981,133.62,133.55,50.0]
[1725903168645,46.99681981,133.62,133.52,50.0]
[1725903168825,45.12549,133.62,133.54,50.0]
[1725903169033,0.12549,133.62,133.54,50.0]
[1725903169417,45.12549,133.62,133.54,50.0]
[1725903169622,45.12549,133.62,133.52,50.0]
[1725903169822,1.87154446,133.61,133.52,50.0]
[1725903170128,0.12549,133.6,133.52,50.0]
[1725903170654,0.12549,133.61,133.52,50.0]
[1725903171024,1.99732188,133.61,133.52,50.0]
[1725903171537,0.12549,133.61,133.52,50.0]
[1725903172326,0.12549,133.61,133.54,50.0]
[1725903172525,45.0,133.62,133.54,50.0]
[1725903173721,0.12549,133.61,133.52,50.0]
[1725903175141,0.12549,133.61,133.53,1.49642461]
[1725903175351,45.0,133.62,133.54,50.0]
[1725903175682,21.4103,133.63,133.55,1.49561089]
[1725903176643,7.83123563,133.62,133.54,50.0]
[1725903177032,7.83123563,133.62,133.52,50.0]
[1725903177234,1.87168756,133.61,133.5,50.0]
[1725903177541,6.16167896,133.6,133.5,50.0]
[1725903177748,0.12549,133.58,133.5,50.0]
[1725903177925,21.99761056,133.58,133.48,66.2497]
[1725903178127,21.99761056,133.58,133.48,50.0]
[1725903178345,21.99761056,133.58,133.5,50.0]
[1725903178530,20.12549,133.58,133.5,50.0]
[1725903179246,20.12549,133.58,133.48,50.0]
[1725903179549,0.12549,133.56,133.48,50.0]
[1725903179750,0.12549,133.56,133.47,6.2761]
[1725903179751,20.12549,133.56,133.5,50.0]
[1725903179938,0.12549,133.57,133.5,50.0]
[1725903180137,45.12549,133.57,133.5,50.0]
[1725903180636,20.0,133.56,133.5,50.0]
[1725903180843,0.12549,133.57,133.51,1.49622145]
[1725903181040,0.12549,133.57,133.48,50.0]
[1725903181240,0.12549,133.57,133.5,50.0]
[1725903181427,0.12549,133.55,133.46,50.0]
[1725903181624,21.99806484,133.55,133.46,50.0]
[1725903181827,0.12549,133.53,133.46,50.0]
[1725903182060,21.99807575,133.53,133.46,50.0]
[1725903182223,20.12549,133.53,133.46,50.0]
[1725903182426,20.0,133.53,133.46,50.0]
[1725903182646,20.12549,133.55,133.46,50.0]
[1725903182843,20.12549,133.55,133.48,50.0]
[1725903183456,20.0,133.55,133.5,50.0]
[1725903183753,22.4984,133.62,133.51,1.4975977]
[1725903183974,22.4984,133.62,133.52,1.49751174]
[1725903184941,29.06948712,133.62,133.52,1.49751174]
[1725903185156,33.23378854,133.62,133.52,1.49751174]
[1725903185339,71.4571494,133.61,133.52,1.49751174]
[1725903186037,65.12549,133.61,133.52,51.49751174]
[1725903186252,20.0,133.61,133.53,1.49732325]
[1725903186861,22.4984,133.62,133.54,50.0]
[1725903187032,22.4984,133.62,133.56,50.0]
[1725903188261,20.0,133.61,133.47,50.0]
[1725903188449,46.9976682,133.6,133.48,50.0]
[1725903188637,0.12549,133.58,133.48,50.0]
[1725903188837,45.12549,133.58,133.48,50.0]
[1725903189033,45.12549,133.58,133.46,50.0]
[1725903189244,45.12549,133.58,133.43,6.1226]
[1725903189245,0.12549,133.54,133.44,50.0]
[1725903189463,46.99815095,133.54,133.44,50.0]